Cogmind - Beta 11 X4 @@@ ROGUE MODE // 2021.05.06 @ 23:34:18 Player: Terminus Result: Destroyed by 8R-AWN with 8R-AWN's Boregun Performance ------------- Evolutions (1) 500 Regions Visited (5) 1000 Robots Destroyed (79) 395 Value Destroyed (1861) 1861 Prototype IDs (25) 500 Alien Tech Used (0) 0 Bonus (-6) -6 TOTAL SCORE: 4250 Bonus ------- Aligned with FarCom 300 Friendly Fire -306 Cogmind --------- Core Integrity 0/400 Matter 185/300 Energy 15/100 System Corruption 0% Temperature Cool (6) Movement Core (800) Ox15 Location -9/Exiles Parts ------- > --- POWER (1) -------- (None) > --- PROPULSION (2) --- (None) > --- UTILITY (4) ------ High-capacity Storage Unit Armor Integrity Analyzer > --- WEAPON (2) ------- Improved EM Shotgun Improved EM Shotgun > --- INVENTORY (20) --- Cooling System Cooling System Cooling System Advanced Targeting Computer High-powered Tractor Beam Autogun Autogun Improved Light Cannon Grenade Launcher Katana Peak State ------------ > --- POWER ------------ Improved Ion Engine > --- PROPULSION ------- Light Treads Light Treads > --- UTILITY ---------- Improved Heat Sink Improved Heat Sink Large Storage Unit Light Armor Plating > --- WEAPON ----------- Beam Rifle Heavy Assault Rifle > --- INVENTORY -------- Improved Ion Engine Light Treads Aluminum Leg Improved Heat Sink Advanced Targeting Computer Hacking Suite High-powered Tractor Beam Medium Laser Medium Laser Small Laser Beam Rifle Grenade Launcher [Rating: 18] Favorites ----------- Power Improved Ion Engine Engine Improved Ion Engine Propulsion Light Treads Treads Light Treads Leg Aluminum Leg Utility Light Armor Plating Device Cooling System Storage Large Storage Unit Processor Armor Integrity Analyzer Protection Light Armor Plating Weapon Autogun Energy Gun Small Laser Ballistic Gun Autogun Ballistic Cannon Improved Light Cannon Launcher Grenade Launcher Slashing Weapon Katana Build | -11 -10 -10 -9 -9 -9 ------- Run | Scr Mat Min Mat Min Exi Slots Evolved 2 | . . . 2 . . Power . | . . . . . . Propulsion . | . . . . . . Utility 2 | . . . 2 . . Weapon . | . . . . . . Parts Attached 77 | 6 18 . 41 1 11 Power 8 | 1 1 . 5 . 1 Engine 8 | 1 1 . 5 . 1 Core . | . . . . . . Reactor . | . . . . . . Propulsion 18 | 2 5 . 9 . 2 Treads 13 | 2 . . 9 . 2 Leg 5 | . 5 . . . . Wheel . | . . . . . . Hover . | . . . . . . Flight . | . . . . . . Utility 23 | 1 4 . 15 . 3 Device 7 | . 2 . 5 . . Storage 5 | 1 2 . 1 . 1 Processor 1 | . . . . . 1 Hackware . | . . . . . . Protection 10 | . . . 9 . 1 Artifact . | . . . . . . Weapon 28 | 2 8 . 12 1 5 Energy Gun 13 | 1 7 . 3 . 2 Energy Cannon . | . . . . . . Ballistic Gun 9 | 1 . . 8 . . Ballistic Cannon 1 | . . . . . 1 Launcher 4 | . 1 . 1 1 1 Special Weapon . | . . . . . . Impact Weapon . | . . . . . . Slashing Weapon 1 | . . . . . 1 Piercing Weapon . | . . . . . . Special Melee Weapon . | . . . . . . Unidentified Prototypes 2 | . . . 2 . . Parts Lost 17 | . 7 . 1 . 9 Power 4 | . 1 . 1 . 2 Propulsion 6 | . 3 . . . 3 Utility 3 | . . . . . 3 Weapon 4 | . 3 . . . 1 Highest Loss Streak 9 | . 7 . 1 . 9 Average Slot Usage (%) 98 | . 96 100 99 100 96 Engine 11 | . 14 14 11 11 10 Treads 18 | . 10 . 21 22 21 Leg 4 | . 16 28 . . . Device 12 | . 11 14 13 11 9 Storage 11 | . 14 14 11 11 11 Protection 15 | . . . 19 22 20 Energy Gun 6 | . 21 28 2 . . Ballistic Gun 13 | . 6 . 19 18 9 Launcher 2 | . . . . 3 9 Naked Turns . | . . . . . . Heaviest Build 61 | 14 24 19 41 41 61 Greatest Support 46 | 40 40 20 46 46 46 Greatest Overweight (x) 2 | 2 1 . 2 . 1 Average Overweight (x) . | . . . . . . Largest Inventory Capacity 20 | 8 10 10 15 15 20 Average Capacity 14 | 7 9 10 14 15 19 Most Carried 18 | 1 10 10 15 15 18 Average Carried 12 | . 7 10 14 15 15 Final Capacity 20 | 8 10 10 15 15 20 Final Carried 15 | 1 10 10 15 15 10 Class Distribution -------------------- 67% | Mutant 32% | Scavenger-Mutant Dominant Class ---------------- Mutant | -10/Materials Mutant | -10/Mines Mutant | -9/Materials Mutant | -9/Mines Mutant | -9/Exiles Resources | -11 -10 -10 -9 -9 -9 ----------- Run | Scr Mat Min Mat Min Exi Matter Collected 1987 | 265 316 . 1386 . 20 Remotely . | . . . . . . Salvage Created 2947 | 95 956 . 1846 33 17 Parts 195 | 1 52 . 137 5 . Haulers Intercepted 8 | . 2 . 6 . . Recyclers Shooed 6 | . 1 . 5 . . Parts Field Recycled . | . . . . . . Retrieved Matter . | . . . . . . Parts Self-Destructed . | . . . . . . Prevented . | . . . . . . Kills | -11 -10 -10 -9 -9 -9 ------- Run | Scr Mat Min Mat Min Exi Combat Hostiles Destroyed 59 | . 20 . 29 3 7 Guns 43 | . 17 . 26 . . AOE 16 | . 3 . 3 3 7 Classes Destroyed 12 | 1 6 . 4 . 1 Worker 4 | . 1 . 3 . . Builder 2 | . . . 2 . . Hauler 8 | . 2 . 6 . . Recycler 3 | 1 . . 2 . . Operator 3 | . 1 . 2 . . Watcher 7 | . 2 . 5 . . Swarmer 12 | . 3 . 6 3 . Grunt 29 | . 17 . 12 . . Brawler 1 | . . . 1 . . Duelist 1 | . . . 1 . . Sentry 9 | . . . 9 . . Assembled 7 | . . . . . 7 Best Kill Streak 7 | 1 7 . 6 3 7 Combat Bots Only 7 | . 7 . 4 3 7 Max Kills in Single Turn 4 | 1 4 . 3 3 2 Gunslinging . | . . . . . . Exploded 3 | . 3 . 1 3 2 Melee . | . . . . . . Uniques/NPCs Destroyed . | . . . . . . Combat | -11 -10 -10 -9 -9 -9 -------- Run | Scr Mat Min Mat Min Exi Damage Taken 3620 | . 1026 . 1205 15 1374 Core 529 | . 123 . 146 . 260 Absorbed by Shields . | . . . . . . Core Remaining (%) 75 | 100 . 50 . . . Volleys Fired 245 | 3 93 . 140 1 8 Largest 2 | 2 2 . 2 1 2 Hottest 90 | 70 90 . 90 30 90 Shots Fired 468 | 6 174 . 276 1 11 Gun 458 | 6 173 . 273 . 6 Cannon . | . . . . . . Launcher 10 | . 1 . 3 1 5 Special . | . . . . . . Kinetic 305 | 3 55 . 247 . . Thermal 135 | 3 106 . 26 . . Explosive 10 | . 1 . 3 1 5 Electromagnetic 18 | . 12 . . . 6 Robot Hit Streak 18 | 5 18 . 14 . 5 Robot Miss Streak 4 | 1 4 . 4 . 2 Penetration Max . | . . . . . . Secondary Targets 2 | . . . 2 . . Max Gunslinging Chain 1 | . . . 1 . . Shots Hit Robots 342 | 5 126 . 179 . 32 Core Hits 147 | 2 49 . 75 4 17 Critical Kills . | . . . . . . Critical Parts Destroyed . | . . . . . . Critical Strikes 6 | 1 5 . . . . Burn 6 | 1 5 . . . . Melee Attacks 32 | . . . . . 32 Impact . | . . . . . . Slashing 32 | . . . . . 32 Piercing . | . . . . . . Sneak Attacks 1 | . . . . . 1 Combat Hostiles . | . . . . . . Follow-up Attacks . | . . . . . . Damage Inflicted 6158 | 66 1737 9 2987 96 1263 Guns 4303 | 62 1592 . 2644 . 5 Cannons . | . . . . . . Explosions 976 | . 114 . 297 86 479 Melee 779 | . . . . . 779 Ramming 100 | 4 31 9 46 10 . Kinetic 2973 | 37 556 . 2380 . . Thermal 1193 | 25 904 . 264 . . Explosive 976 | . 114 . 297 86 479 Electromagnetic 137 | . 132 . . . 5 Impact . | . . . . . . Slashing 779 | . . . . . 779 Piercing . | . . . . . . Highest Corruption . | . . . . . . Average Corruption . | . . . . . . Corruption Purged . | . . . . . . Overload Shots . | . . . . . . Overflow Damage 16 | . . . 5 . 11 Projectiles . | . . . . . . Explosions 16 | . . . 5 . 11 Melee . | . . . . . . Knockbacks 1 | . . . 1 . . Impact 1 | . . . 1 . . Kinetic . | . . . . . . Secondary . | . . . . . . Self-Inflicted Damage 118 | . 23 . . . 95 Shots 5 | . 1 . . . 4 Rammed 13 | 1 1 . 9 2 . Targets Rammed 19 | 1 5 2 9 2 . Kicked 6 | . 4 2 . . . Crushed . | . . . . . . Highest Temperature 251 | 27 251 . 84 . 6 Average Temperature 119 | 14 153 . 42 . 4 Received Heat Transfer 1017 | . 558 . 459 . . Siege Activations . | . . . . . . Robots Corrupted . | . . . . . . Combat Hostiles . | . . . . . . Parts Fried . | . . . . . . Impact Corruptions . | . . . . . . Robots Melted . | . . . . . . Combat Hostiles . | . . . . . . Parts Melted 6 | . 6 . . . . Heat Transferred 3591 | 148 2776 . 667 . . Parts Sabotaged . | . . . . . . Parts Stolen . | . . . . . . Parts Stripped . | . . . . . . Power Chain Reactions . | . . . . . . Missiles Intercepted . | . . . . . . Alert | -11 -10 -10 -9 -9 -9 ------- Run | Scr Mat Min Mat Min Exi Peak Influence 363 | 5 335 38 363 226 . Initial 141 | . 3 8 14 141 . Average 131 | 2 162 18 127 173 . Maximum Alert Level 1 | . 1 . 1 1 . Low Security (%) 77 | 100 65 100 80 62 . Level 1 22 | . 34 . 19 37 . Level 2 . | . . . . . . Level 3 . | . . . . . . Level 4 . | . . . . . . Level 5 . | . . . . . . High Security . | . . . . . . Max Security . | . . . . . . Squads Dispatched 7 | . 4 . 3 . . Investigation 2 | . 2 . . . . Extermination . | . . . . . . Reinforcement 5 | . 2 . 3 . . Assault . | . . . . . . Garrison . | . . . . . . Intercept . | . . . . . . Construction Impeded . | . . . . . . Haulers Reinforced . | . . . . . . Cargo Convoy Interrupts . | . . . . . . Stealth | -11 -10 -10 -9 -9 -9 --------- Run | Scr Mat Min Mat Min Exi Distress Signals 5 | . 5 . . . . Communications Jammed . | . . . . . . Distress Signals . | . . . . . . Times Spotted 103 | . 39 2 52 2 8 Peak Tracking Total 9 | . 9 2 5 2 9 Tactical Retreats 5 | . 3 1 1 . . Traps | -11 -10 -10 -9 -9 -9 ------- Run | Scr Mat Min Mat Min Exi Traps Triggered 2 | . 2 . . . . Indirectly . | . . . . . . Trap Hack Attempts . | . . . . . . Triggered . | . . . . . . Disarmed . | . . . . . . Reprogrammed . | . . . . . . Reused . | . . . . . . Traps Extracted . | . . . . . . Installed . | . . . . . . Triggered . | . . . . . . Machines | -11 -10 -10 -9 -9 -9 ---------- Run | Scr Mat Min Mat Min Exi Machines Disabled 5 | . . . 1 1 3 Max in Single Turn 1 | . . . 1 1 1 Machines Sabotaged . | . . . . . . Garrisons Compromised . | . . . . . . Overloaded Fab Kills . | . . . . . . Fab Network Shutdowns . | . . . . . . Hacking | -11 -10 -10 -9 -9 -9 --------- Run | Scr Mat Min Mat Min Exi Machines Accessed 16 | . 7 . 7 . 2 Terminals 11 | . 5 . 6 . . Fabricators . | . . . . . . Repair Stations 1 | . . . 1 . . Recycling Units 2 | . 2 . . . . Scanalyzers . | . . . . . . Garrison Access . | . . . . . . Total Hacks 50 | . 21 . 24 . 5 Successful 40 | . 14 . 21 . 5 Failed 10 | . 7 . 3 . . Catastrophic 1 | . 1 . . . . Database Lockouts . | . . . . . . Manual 35 | . 19 . 15 . 1 Terminals 35 | . 19 . 16 . . Fabricators . | . . . . . . Repair Stations 8 | . . . 8 . . Recycling Units 2 | . 2 . . . . Scanalyzers . | . . . . . . Garrison Access . | . . . . . . Terminal Hacks 19 | . 7 . 7 . 5 Record 4 | . . . . . 4 Branch Access Points 1 | . . . 1 . . Terminal Index 1 | . 1 . . . . Alert Level 5 | . 2 . 3 . . Unreport Threat 2 | . 1 . 1 . . Hauler Manifests 1 | . 1 . . . . Zone Layout 4 | . 2 . 2 . . EX-Prototype ID Bank 1 | . . . . . 1 Fabricator Hacks . | . . . . . . Repair Station Hacks 8 | . . . 8 . . Scan Component 4 | . . . 4 . . Repair 4 | . . . 4 . . Recycling Unit Hacks . | . . . . . . Scanalyzer . | . . . . . . Garrison Access Hacks . | . . . . . . Unauthorized Hacks 13 | . 7 . 6 . . Terminals 11 | . 5 . 6 . . Track 1 | . . . 1 . . Botnet 10 | . 5 . 5 . . Fabricators . | . . . . . . Repair Stations . | . . . . . . Recycling Units 2 | . 2 . . . . Tunnel 2 | . 2 . . . . Scanalyzers . | . . . . . . Garrison Access . | . . . . . . Data Cores Recovered 1 | . . . 1 . . Used . | . . . . . . Hacking Detections 11 | . 5 . 6 . . Full Trace Events . | . . . . . . Feedback Events . | . . . . . . Feedback Blocked . | . . . . . . Robot Schematics Acquired . | . . . . . . Robots Built . | . . . . . . Matter . | . . . . . . Time . | . . . . . . Total Robot Build Rating . | . . . . . . Part Schematics Acquired . | . . . . . . Parts Built . | . . . . . . Matter . | . . . . . . Time . | . . . . . . Total Part Build Rating . | . . . . . . Parts Repaired 4 | . . . 4 . . Time 116 | . . . 116 . . Parts Recycled . | . . . . . . Recycled Matter . | . . . . . . Retrieved Matter . | . . . . . . Retrieved Components . | . . . . . . Parts Scanalyzed . | . . . . . . Part Schematics Acquired . | . . . . . . Parts Damaged . | . . . . . . Bothacking | -11 -10 -10 -9 -9 -9 ------------ Run | Scr Mat Min Mat Min Exi Used RIF Installer . | . . . . . . Robots Hacked . | . . . . . . Non-combat . | . . . . . . Combat . | . . . . . . Robot Hacks Applied . | . . . . . . Relay Couplers Released . | . . . . . . Robots Rewired . | . . . . . . Allies Hacked . | . . . . . . Hacks Repelled . | . . . . . . Allies | -11 -10 -10 -9 -9 -9 -------- Run | Scr Mat Min Mat Min Exi Total Allies . | . . . . . . Largest Group . | . . . . . . Highest-Rated Group . | . . . . . . Highest-Rated Ally . | . . . . . . Total Orders . | . . . . . . Ally Attacks . | . . . . . . Total Damage . | . . . . . . Kills . | . . . . . . Allies Corrupted . | . . . . . . Allies Melted . | . . . . . . Intel | -11 -10 -10 -9 -9 -9 ------- Run | Scr Mat Min Mat Min Exi Robot Analysis Total . | . . . . . . Derelict Logs Recovered 1 | . . . . 1 . Drone Launches . | . . . . . . Drone Recoveries . | . . . . . . Exploration | -11 -10 -10 -9 -9 -9 ------------- Run | Scr Mat Min Mat Min Exi Turns Passed 6205 | 89 1211 206 3175 256 1268 Spaces Moved 2664 | 47 633 110 1247 155 472 Core 12 | 12 . . . . . Treads 2067 | 35 175 . 1230 155 472 Legs 585 | . 458 110 17 . . Wheels . | . . . . . . Hover . | . . . . . . Flight . | . . . . . . Fastest Speed 50 | 50 120 120 120 160 160 Average Speed 181 | 148 131 120 198 160 229 Slowest Speed 360 | 160 200 120 360 160 260 Overloaded Moves . | . . . . . . Propulsion Burnouts . | . . . . . . Robots Hopped . | . . . . . . Cave-ins Triggered . | . . . . . . Exploration Rate (%) 54 | 4 93 24 92 42 69 Regions Visited 5 Branch Regions 3 Pre-discovered Areas 4 | . 2 . . 1 1 Known Exits Taken 1 | . . . 1 . . Unknown Exits Taken 4 | 1 1 1 . 1 . Scrap Searched . | . . . . . . Spaces Dug 12 | . 7 . . . 5 Terrain Destroyed 72 | . 7 . 27 7 31 Melee . | . . . . . . Projectile . | . . . . . . AOE 72 | . 7 . 27 7 31 Terrain Rammed . | . . . . . . Walls Destroyed . | . . . . . . Machines Disabled . | . . . . . . Actions | -11 -10 -10 -9 -9 -9 --------- Run | Scr Mat Min Mat Min Exi Total 3562 | 57 838 183 1725 160 599 Wait 415 | . 61 72 215 2 65 Move 2659 | 46 632 109 1246 154 472 Hop . | . . . . . . Pick Up 52 | 1 18 . 28 . 5 Fast Attach 20 | 6 4 . 10 . . Attach 13 | . 5 . 3 . 5 Detach . | . . . . . . Swap 44 | . 9 . 28 1 6 Drop 63 | . 11 . 46 . 6 Fire 245 | 3 93 . 140 1 8 Melee 32 | . . . . . 32 Ram . | . . . . . . Kick 6 | . 4 2 . . . Crush 13 | 1 1 . 9 2 . Escape Stasis . | . . . . . . Rewire . | . . . . . . Trap . | . . . . . . Miscellaneous . | . . . . . . Route ------- -11/Scrapyard -10/Materials (discovered 4 exits: *Mat x3 / [*Min]) -10/Mines -9/Materials (discovered 7 exits: [*Mat x3] / *Min x2 / *Sto x2) -9/Mines -9/Exiles (discovered 2 exits: [*Min x2]) History --------- Turn | Location | Event 14 | -11/Scrapyard | Discovered new exit (range 15) 90 | -11/Scrapyard | Entered Materials 318 | -10/Materials | Build established: Mutant 478 | -10/Materials | Discovered new exit (range 10) 647 | -10/Materials | Lost 7 parts (1p3n3w) 660 | -10/Materials | Destroyed 7 combat bots 667 | -10/Materials | Discovered new exit (range 16) 856 | -10/Materials | Discovered new exit (range 12) 945 | -10/Materials | Build established: Scavenger-Mutant 1232 | -10/Materials | Discovered new exit (range 8) 1301 | -10/Materials | Entered Mines 1342 | -10/Mines | Discovered new exit (range 6) 1387 | -10/Mines | Assembled infested the area 1442 | -10/Mines | Build established: Mutant 1507 | -10/Mines | Entered Materials 1507 | -9/Materials | Evolved 2 slots: Utility x2 1705 | -9/Materials | Discovered new exit (range 8) 1807 | -9/Materials | Build established: Scavenger-Mutant 2222 | -9/Materials | Discovered new exit (range 15) 2365 | -9/Materials | Identified exit to Mines 2365 | -9/Materials | Identified exit to Storage 2459 | -9/Materials | Build established: Mutant 3224 | -9/Materials | Build established: Scavenger-Mutant 3427 | -9/Materials | Discovered new exit (range 5) 3840 | -9/Materials | Repaired Lgt. Armor Plating 3868 | -9/Materials | Repaired Lgt. Armor Plating 3901 | -9/Materials | Repaired Autogun 3935 | -9/Materials | Repaired Autogun 3975 | -9/Materials | Build established: Mutant 4208 | -9/Materials | Discovered new exit (range 8) 4682 | -9/Materials | Entered Mines 4727 | -9/Mines | Learned location of Zion (-6) 4796 | -9/Mines | Deemed a non-threat by the Exiles lab entrance 4798 | -9/Mines | Discovered new exit (range 5) 4938 | -9/Mines | Entered Exiles 4962 | -9/Exiles | Discovered new exit (range 15) 4978 | -9/Exiles | Met 8R-AWN 5004 | -9/Exiles | Met EX-HEX 5089 | -9/Exiles | Met EX-DEC 5211 | -9/Exiles | Discovered new exit (range 14) 5718 | -9/Exiles | Met EX-BIN 5746 | -9/Exiles | Aligned with FarCom system 5749 | -9/Exiles | Given EX-Vault access code 5809 | -9/Exiles | Opened EX-Vault 5871 | -9/Exiles | Warned to stay clear of 0b10 Research branches 6077 | -9/Exiles | Attacked by the Exiles 6090 | -9/Exiles | Core integrity fell below 50% 6115 | -9/Exiles | Destroyed 7 combat bots 6180 | -9/Exiles | Core integrity fell below 20% 6206 | -9/Exiles | Destroyed by 8R-AWN with 8R-AWN's Boregun Last Messages --------------- 06125_ Penetrated by HV Slug. 06127_ HV Slug penetrates Wall. 06131_ Penetrated by HV Slug. 06131_ Imp. Ion Engine destroyed. 06135_ Penetrated by HV Slug. 06145_ Imp. Light Cannon destroyed. 06145_ HV Slug penetrates Earth. 06149_ HV Slug penetrates Wall. 06149_ Penetrated by HV Slug. 06166_ Lgt. Treads destroyed. 06166_ Penetrated by HV Slug. 06166_ Imp. Ion Engine destroyed. 06171_ Penetrated by HV Slug. 06183_ Lgt. Treads destroyed. 06183_ Penetrated by HV Slug. 06189_ HV Slug penetrates Earth. 06189_ HV Slug penetrates Wall. 06193_ Penetrated by HV Slug. 06202_ HV Slug penetrates Wall. 06206_ Penetrated by HV Slug. Map ----- +----------------------------------------------------+ | ?????????????????????????????????????????????????? | | ?????????????????????????????????????????????????? | | ?????????????????????????????????????????????????? | | ?????????????????????????????????????????????????? | | ?????????????????????????????????????????????????? | | ?????????????????????????????????????????????????? | | ?????????????????????????????????????????????????? | | ?????????????????????????????????????????????????? | | ?????????????????????????????????????????????????? | | ?????????????????????????????????????????????????? | | ??????????#??????????????????????????????????????? | | ??????????? ?????????????????????????????????????? | | ???????????? #??????????????????????????? < ????? | | #####???????# #?####????????????????????? #???? | | """"##???????# #? ????????????????????? ????? | | """"##???????# ## ##??????????????????# #????? | | " #????????# # #????????????????## ##???? | | """#??????#??# # ####?????????????# #???? | | " "#??????# ###; ##????????????# #???? | | " "##?????? = #???????????## ????? | | ""###?????# #??????????## #?????? | | """#?????# #??????????# #?????? | | "#????## % "????????### #??????? | | ##??## ########## #??????? | | ##?# #""""## #???????? | | ## % @ ##??????? | | * # #??????? | | * ### g ##?????? | | * ?#"""""#### ###???? | | ?#######??#### ###?? | | # ###?????????????##### ##? | | #####????????????????????### #? | | ##??????????????????????????### #? | | " ""#?????????????????????????????### #? | | " "##??????????????????????????????#" ## | | #"""""""##???????????????????????????????#### # | | #########???????????????????????????????????# | | ????????????????????????????????????????????## | | ?????????????????????????????????????????????### | | ???????????????????????????????????????????????# | | ???????????????????????????????????????????????## | | ????????????????????????????????????????????????## | | ?????????????????????????????????????????????????? | | ?????????????????????????????????????????????????? | | ?????????????????????????????????????????????????? | | ?????????????????????????????????????????????????? | | ?????????????????????????????????????????????????? | | ?????????????????????????????????????????????????? | | ?????????????????????????????????????????????????? | | ?????????????????????????????????????????????????? | +----------------------------------------------------+ Best States ------------- Heat Dissipation 72 Energy Generation 12 Energy Capacity 265 Matter Stores 300 Matter Capacity 300 Sight Range 16 Terrain Scan Density 10 Armor Coverage 300 Evasion (%) 55 Armor Integrity Analysis 35 Recoil Reduction 2 Item Schematics ----------------- None Robot Schematics ------------------ None Fabricated ------------ Nothing Alien Tech Used ----------------- None Achievements -------------- None Challenges ------------ None Game ------ Seed CannonShockFirepult Manual? 0 Play Time 00:34:03 Cumulative 1151.9 hours Start 2021.05.06 @ 22:59:49 End 2021.05.06 @ 23:34:18 Sessions 1 Manual Loads 0 Difficulty Rogue Special Mode None Game No. 393 Rogue 393 Adventurer 0 Explorer 0 Win Type - Total 84 Types 15/10/37/5/1/2/12/1/1 Lore% 96 Gallery% 96 Achievement% 85 Wizard Run 0 Options --------- ASCII 0 Keyboard 0 Movement Numpad Keybinds 0 Fullscreen 1 Font 18/SmallcapsGlow Map View 76x50 Tactical HUD 1 Map Filters NONE Filters NONE Steam 1 RUN: 3d0cd2fc-2438-4316-8293-abaa4c49ddc2